bitfinex-derivatives/quotes_BTCF0:USTF0_20250609
["timestamp","ask_amount","ask_price","bid_price","bid_amount"]
[1749510782232,0.62970361,109920.0,109910.0,0.17397013]
[1749510782529,0.62970361,109920.0,109910.0,0.16007782]
[1749510782729,0.62970361,109920.0,109910.0,0.17397024]
[1749510784034,0.62970361,109920.0,109910.0,0.17397046]
[1749510784227,0.67217002,109920.0,109910.0,0.08883528]
[1749510784429,1.11369527,109920.0,109910.0,0.08883542]
[1749510784632,1.11369527,109920.0,109910.0,0.07494264]
[1749510784833,1.11369527,109920.0,109910.0,0.08883542]
[1749510785030,1.20967501,109920.0,109910.0,0.02947035]
[1749510785232,1.60702288,109920.0,109910.0,0.02629911]
[1749510785431,0.1818851,109910.0,109900.0,0.005]
[1749510785628,0.7743251,109910.0,109900.0,0.01740269]
[1749510785829,0.37889523,109910.0,109900.0,0.0174181]
[1749510786138,0.8479371,109910.0,109900.0,0.51216068]
[1749510786434,0.98034723,109910.0,109900.0,0.01744437]
[1749510786635,0.98134723,109910.0,109900.0,0.01744437]
[1749510786935,0.48780723,109910.0,109900.0,0.37974632]
[1749510787130,1.01564723,109910.0,109900.0,0.56164801]
[1749510787338,1.01565793,109910.0,109900.0,0.57408113]
[1749510787538,1.01565793,109910.0,109900.0,0.6452477]
[1749510787737,1.01565793,109910.0,109900.0,0.6591826]
[1749510787932,1.01565793,109910.0,109900.0,0.65918465]
[1749510788124,1.01565793,109910.0,109900.0,0.39214527]
[1749510788331,1.01565793,109910.0,109900.0,0.39214166]
[1749510788526,1.01565793,109910.0,109900.0,0.37819798]
[1749510788731,1.01565793,109910.0,109900.0,0.37819791]
[1749510789131,1.01565793,109910.0,109900.0,0.37819799]
[1749510789534,1.01565793,109910.0,109900.0,0.37974368]
[1749510789740,1.01565793,109910.0,109900.0,0.39214167]
[1749510789942,1.01565793,109910.0,109900.0,0.39214164]
[1749510790234,1.01565793,109910.0,109900.0,0.37819514]
[1749510790434,1.01565793,109910.0,109900.0,0.37974265]
[1749510790836,1.01565793,109910.0,109900.0,0.37819425]
[1749510791233,1.01569793,109910.0,109900.0,0.39058851]
[1749510791536,1.01569793,109910.0,109900.0,0.37819425]
[1749510791734,1.01569793,109910.0,109900.0,0.39059414]
[1749510791935,1.01549793,109910.0,109900.0,0.37819425]
[1749510795146,1.01549793,109910.0,109900.0,0.42069841]
[1749510795542,0.075612,109910.0,109900.0,0.69251678]
[1749510795747,0.177412,109910.0,109900.0,0.85983398]
[1749510795946,0.177412,109910.0,109900.0,0.84570078]
[1749510796446,0.177412,109910.0,109900.0,0.8598358]
[1749510796745,0.177412,109910.0,109900.0,1.00144903]
[1749510796939,0.3592972,109910.0,109900.0,1.01558398]
[1749510797333,0.2574972,109910.0,109900.0,1.01558379]
[1749510797537,0.177412,109910.0,109900.0,1.01558378]
[1749510797739,0.3592972,109910.0,109900.0,1.00144903]
[1749510797938,0.3592972,109910.0,109900.0,1.01558374]
[1749510798140,0.3592972,109910.0,109900.0,1.01558377]
[1749510798645,0.177412,109910.0,109900.0,1.01543044]
[1749510798838,0.3592972,109910.0,109900.0,1.00144903]
[1749510799042,0.3592972,109910.0,109900.0,1.01545325]
[1749510799346,0.177412,109910.0,109900.0,1.00144903]
[1749510799539,0.3592972,109910.0,109900.0,1.01545328]
[1749510799845,0.177412,109910.0,109900.0,1.00144903]
[1749510800143,0.3592972,109910.0,109900.0,1.01545333]
[1749510800347,0.3592972,109910.0,109900.0,0.64064903]
[1749510800542,0.3592972,109910.0,109900.0,0.65465328]
[1749510800845,0.3592972,109910.0,109900.0,0.56366928]
[1749510801044,0.177412,109910.0,109900.0,0.56366928]
[1749510801247,0.3592972,109910.0,109900.0,0.54966503]
[1749510801546,0.177412,109910.0,109900.0,0.56366928]
[1749510802050,0.177412,109910.0,109900.0,0.56366931]
[1749510802251,0.177412,109910.0,109900.0,0.5636693]
[1749510802445,0.177412,109910.0,109900.0,0.54966503]
[1749510802743,0.177412,109910.0,109900.0,0.56366928]
[1749510802946,0.177412,109910.0,109900.0,0.54966503]
[1749510803146,0.3592972,109910.0,109900.0,0.56366928]
[1749510803339,0.3592971,109910.0,109900.0,0.54966503]
[1749510803540,0.3592971,109910.0,109900.0,0.40296585]
[1749510803741,0.49171793,109910.0,109900.0,0.54458101]
[1749510803941,0.49171793,109910.0,109900.0,0.38896332]
[1749510804242,0.52181793,109910.0,109900.0,0.4029683]
[1749510804447,0.3893971,109910.0,109900.0,0.40296829]
[1749510804747,0.3893971,109910.0,109900.0,0.38896332]
[1749510805142,0.3893971,109910.0,109900.0,0.40296832]
[1749510805344,0.3893971,109910.0,109900.0,0.40296831]
[1749510805547,0.3893971,109910.0,109900.0,0.38896332]
[1749510805941,0.4209971,109910.0,109900.0,0.38896332]
[1749510806145,0.55341793,109910.0,109900.0,0.32676332]
[1749510806442,0.97909793,109910.0,109900.0,0.2134309]
[1749510806850,0.8466771,109910.0,109900.0,0.2134309]
[1749510807043,0.8466771,109910.0,109900.0,0.29845389]
[1749510807242,0.97909793,109910.0,109900.0,0.29845389]
[1749510807846,0.97909793,109910.0,109900.0,0.11655219]
[1749510808247,0.8466771,109910.0,109900.0,0.11655219]
[1749510808447,0.97909793,109910.0,109900.0,0.29845389]
[1749510809151,0.97909793,109910.0,109900.0,0.11655219]
[1749510810748,0.97909793,109910.0,109900.0,0.07404173]
[1749510812751,0.8466771,109910.0,109900.0,0.07404173]
[1749510812956,0.97909793,109910.0,109900.0,0.07404173]
[1749510813349,0.8466771,109910.0,109900.0,0.07404173]
[1749510813549,0.97909793,109910.0,109900.0,0.07404173]
[1749510814656,0.97909793,109910.0,109900.0,0.0315292]
[1749510815155,0.97909793,109910.0,109900.0,0.08820541]
[1749510818065,0.97909793,109910.0,109900.0,0.07403701]
[1749510821057,0.97909793,109910.0,109900.0,0.0315292]
[1749510821260,0.97909793,109910.0,109900.0,0.07403088]
[1749510821662,0.8466771,109910.0,109900.0,0.44502962]
[1749510821862,0.075612,109910.0,109900.0,0.40252794]
[1749510822060,0.177292,109910.0,109900.0,0.41125173]
[1749510822260,0.177292,109910.0,109900.0,0.49624164]
[1749510822963,0.177292,109910.0,109900.0,0.52461571]
[1749510823964,0.075612,109910.0,109900.0,0.52461571]
[1749510824369,0.177292,109910.0,109900.0,0.41125173]
[1749510824572,0.177292,109910.0,109900.0,0.55295671]
[1749510825170,0.175292,109910.0,109900.0,0.55295671]
[1749510825866,0.3571771,109910.0,109900.0,0.55295671]
[1749510826067,0.175292,109910.0,109900.0,0.55295671]
[1749510826671,0.3571772,109910.0,109900.0,0.41125173]
[1749510827671,0.175292,109910.0,109900.0,0.41125173]
[1749510828775,0.175292,109910.0,109900.0,0.43965465]
[1749510828973,0.175292,109910.0,109900.0,0.55294127]
[1749510829177,0.073612,109910.0,109900.0,0.43471075]
[1749510829379,0.10168,109910.0,109900.0,0.43471075]
[1749510829577,0.10168,109910.0,109900.0,0.56710662]
[1749510829876,0.2835652,109910.0,109900.0,0.40628285]
[1749510830177,0.10168,109910.0,109900.0,0.53847177]
[1749510830678,0.10168,109910.0,109900.0,0.53846617]
[1749510831081,0.10168,109910.0,109900.0,0.40604534]
[1749510831274,0.10168,109910.0,109900.0,0.53846617]
[1749510831473,0.17609714,109910.0,109900.0,0.53844682]
[1749510831683,0.17609714,109910.0,109900.0,0.52453835]
[1749510831876,0.17609714,109910.0,109900.0,0.56676851]
[1749510832079,0.35798234,109910.0,109900.0,0.56676856]
[1749510832283,0.17609714,109910.0,109900.0,0.56676856]
[1749510832483,0.35798234,109910.0,109900.0,0.56676856]
[1749510832980,0.17609714,109910.0,109900.0,0.56676856]
[1749510833381,0.17609714,109910.0,109900.0,0.55286]
[1749510834277,0.17609714,109910.0,109900.0,0.5667675]
[1749510834481,0.17609714,109910.0,109900.0,0.66614627]
[1749510834676,0.17609714,109910.0,109900.0,0.524538]
[1749510834982,0.17609714,109910.0,109900.0,0.53844562]
[1749510835184,0.17609714,109910.0,109900.0,0.53845544]
[1749510835382,0.17609714,109910.0,109900.0,0.524538]
[1749510836876,0.17609714,109910.0,109900.0,0.53845622]
[1749510837085,0.17609714,109910.0,109900.0,0.524538]
[1749510837478,0.17609714,109910.0,109900.0,0.53858358]
[1749510837678,0.07441714,109910.0,109900.0,0.53858358]
[1749510837879,0.10164,109910.0,109900.0,0.524538]
[1749510838484,0.10164,109910.0,109900.0,0.55286]
[1749510838685,0.10164,109910.0,109900.0,0.56690676]
[1749510838985,0.10164,109910.0,109900.0,0.55286]
[1749510839177,0.10164,109910.0,109900.0,0.56684402]
[1749510839686,0.10164,109910.0,109900.0,0.56684411]
[1749510840282,0.10164,109910.0,109900.0,0.56684113]
[1749510840482,0.33333788,109920.0,109910.0,0.1818852]
[1749510840683,0.38950718,109920.0,109910.0,0.53695188]
[1749510841077,0.28786718,109920.0,109910.0,0.52297245]
[1749510841274,0.00011748,109920.0,109910.0,0.53695181]
[1749510841478,0.10175748,109920.0,109910.0,0.53695169]
[1749510841685,0.10275748,109920.0,109910.0,0.5369517]
[1749510841982,0.18398608,109920.0,109910.0,0.52297245]
[1749510842185,0.28562608,109920.0,109910.0,0.52297245]
[1749510843183,0.28562608,109920.0,109910.0,0.53695168]
[1749510843680,0.28562608,109920.0,109910.0,0.53695176]
[1749510844185,0.28562608,109920.0,109910.0,0.52297245]
[1749510844386,0.28562608,109920.0,109910.0,0.53695723]
[1749510844578,0.28562608,109920.0,109910.0,0.44155723]
[1749510844779,0.38402608,109920.0,109910.0,0.42757245]
[1749510845585,0.38402608,109920.0,109910.0,0.47245724]
[1749510845785,0.35152608,109920.0,109910.0,0.45847245]
[1749510845980,0.35152608,109920.0,109910.0,0.47245443]
[1749510846185,0.35152608,109920.0,109910.0,0.48927245]
[1749510846387,0.35152608,109920.0,109910.0,0.5032544]
[1749510846683,0.35152608,109920.0,109910.0,0.50325545]
[1749510847391,0.35152608,109920.0,109910.0,0.50325925]
[1749510847985,0.35152608,109920.0,109910.0,0.50325923]
[1749510848992,0.35152608,109920.0,109910.0,0.50325919]
[1749510849401,0.35152608,109920.0,109910.0,0.48927245]
[1749510849983,0.35152608,109920.0,109910.0,0.50325638]
[1749510850180,0.35152608,109920.0,109910.0,0.5176143]
[1749510850395,0.35152608,109920.0,109910.0,0.5316005]
[1749510850396,0.31842608,109920.0,109910.0,0.5316005]
[1749510850795,0.31842608,109920.0,109910.0,0.53160049]
[1749510851188,0.31842608,109920.0,109910.0,0.53162616]
[1749510851389,0.31842608,109920.0,109910.0,0.53162615]
[1749510851590,0.34892608,109920.0,109910.0,0.53162618]
[1749510852696,0.34892608,109920.0,109910.0,0.53162712]
[1749510853291,0.34892608,109920.0,109910.0,0.5176143]
[1749510853795,0.34892608,109920.0,109910.0,0.53158655]
[1749510854499,0.34892608,109920.0,109910.0,0.5176143]
[1749510854996,0.34892608,109920.0,109910.0,0.53159337]
[1749510856397,0.34892608,109920.0,109910.0,0.53159383]
[1749510856597,0.34892608,109920.0,109910.0,0.5176143]
[1749510856793,0.34892608,109920.0,109910.0,0.5315938]
[1749510857799,0.34892608,109920.0,109910.0,0.53159415]
[1749510858009,0.34892608,109920.0,109910.0,0.53159413]
[1749510858299,0.34892608,109920.0,109910.0,0.5176143]
[1749510858501,0.34892608,109920.0,109910.0,0.53159834]
[1749510858903,0.34892608,109920.0,109910.0,0.531628]
[1749510859699,0.34892608,109920.0,109910.0,0.5176143]
[1749510859897,0.34892608,109920.0,109910.0,0.53162888]
[1749510860101,0.34892608,109920.0,109910.0,0.38519347]
[1749510860409,0.34892608,109920.0,109910.0,0.50082888]
[1749510861104,0.34892608,109920.0,109910.0,0.35922061]
[1749510861306,0.34892608,109920.0,109910.0,0.34520603]
[1749510861502,0.34892608,109920.0,109910.0,0.3592107]
[1749510861700,0.34892608,109920.0,109910.0,0.34520603]
[1749510861902,0.34892608,109920.0,109910.0,0.35921069]
[1749510863003,0.34892608,109920.0,109910.0,0.35921049]
[1749510863198,0.34892608,109920.0,109910.0,0.34520603]
[1749510863503,0.34892608,109920.0,109910.0,0.35921049]
[1749510863703,0.34892608,109920.0,109910.0,0.35922257]
[1749510864095,0.34892608,109920.0,109910.0,0.50083084]
[1749510864404,0.34892608,109920.0,109910.0,0.4868143]
[1749510864707,0.34892608,109920.0,109910.0,0.50083467]
[1749510865004,0.34892608,109920.0,109910.0,0.50083462]
[1749510865203,0.34892608,109920.0,109910.0,0.4868143]
[1749510865406,0.34880608,109920.0,109910.0,0.4868143]
[1749510865700,0.34880608,109920.0,109910.0,0.51447462]
[1749510866202,0.34880608,109920.0,109910.0,0.36803347]
[1749510866403,0.34880608,109920.0,109910.0,0.5004543]
[1749510867306,0.34880608,109920.0,109910.0,0.51447462]
[1749510868306,0.34880608,109920.0,109910.0,0.5004543]
[1749510868605,0.34880608,109920.0,109910.0,0.51447462]
[1749510868810,0.34880608,109920.0,109910.0,0.54617462]
[1749510869406,0.34880608,109920.0,109910.0,0.5321543]
[1749510869701,0.34880608,109920.0,109910.0,0.39973347]
[1749510869907,0.34880608,109920.0,109910.0,0.73040589]
[1749510870307,0.34880608,109920.0,109910.0,0.54617427]
[1749510871006,0.34880608,109920.0,109910.0,0.40457144]
[1749510871208,0.34880608,109920.0,109910.0,0.39054603]
[1749510871403,0.34880608,109920.0,109910.0,0.40457148]
[1749510871799,0.34880608,109920.0,109910.0,0.51823605]
[1749510872301,0.34880608,109920.0,109910.0,0.51824025]
[1749510872507,0.34880608,109920.0,109910.0,0.51824021]
[1749510872811,0.34880608,109920.0,109910.0,0.5042106]
[1749510872998,0.34880608,109920.0,109910.0,0.51824018]
[1749510873809,0.34880608,109920.0,109910.0,0.5042106]
[1749510874317,0.34880608,109920.0,109910.0,0.51824089]
[1749510874501,0.34880608,109920.0,109910.0,0.5042106]
[1749510874706,0.34880608,109920.0,109910.0,0.51824092]
[1749510875708,0.34880608,109920.0,109910.0,0.51824253]
[1749510876209,0.34880608,109920.0,109910.0,0.5042106]
[1749510876412,0.34880608,109920.0,109910.0,0.51824244]
[1749510876807,0.34880608,109920.0,109910.0,0.40457787]
[1749510877207,0.34880608,109920.0,109910.0,0.40454508]
[1749510877409,0.34880608,109920.0,109910.0,0.39051324]
[1749510878215,0.34880608,109920.0,109910.0,0.40456597]
[1749510878514,0.34880608,109920.0,109910.0,0.4137862]
[1749510878711,0.34880608,109920.0,109910.0,0.54617424]
[1749510879112,0.34880608,109920.0,109910.0,0.53212151]
[1749510879317,0.34880608,109920.0,109910.0,0.54617495]
[1749510879613,0.34880608,109920.0,109910.0,0.54617491]
[1749510879814,0.34880608,109920.0,109910.0,0.53212151]
[1749510880010,0.34880608,109920.0,109910.0,0.54617493]
[1749510880213,0.34880608,109920.0,109910.0,0.12771926]
[1749510880214,0.61358216,109920.0,109910.0,0.12771926]
[1749510880519,0.51419412,109920.0,109910.0,0.441993]
[1749510880817,0.51419412,109920.0,109910.0,0.26009593]
[1749510881116,0.51419412,109920.0,109910.0,0.24605388]
[1749510881413,0.93933684,109920.0,109910.0,0.11366584]
[1749510881612,0.93933684,109920.0,109910.0,0.30959344]
[1749510881814,0.93933684,109920.0,109910.0,0.12770784]
[1749510882119,0.80692608,109920.0,109910.0,0.30959344]
[1749510882614,0.80692608,109920.0,109910.0,0.2004676]
[1749510882914,0.80692608,109920.0,109910.0,0.31413322]
[1749510883115,0.80692608,109920.0,109910.0,0.20046728]
[1749510883320,0.80692608,109920.0,109910.0,0.20046723]
[1749510883627,0.80692608,109920.0,109910.0,0.20046726]
[1749510884519,0.80692608,109920.0,109910.0,0.28572953]
[1749510884720,0.80692608,109920.0,109910.0,0.27159033]
[1749510884918,0.80692608,109920.0,109910.0,0.1864256]
[1749510885121,0.80692608,109920.0,109910.0,0.30009144]
[1749510885321,0.80692608,109920.0,109910.0,0.31423062]
[1749510886019,0.80692608,109920.0,109910.0,0.31423209]
[1749510886413,0.80692608,109920.0,109910.0,0.27157869]
[1749510886915,0.80692608,109920.0,109910.0,0.2857193]
[1749510888121,0.80692608,109920.0,109910.0,0.27157869]
[1749510888322,0.80692608,109920.0,109910.0,0.28578925]
[1749510888525,0.80692608,109920.0,109910.0,0.27157869]
[1749510888724,0.80692608,109920.0,109910.0,0.2857893]
[1749510888923,0.80692608,109920.0,109910.0,0.20063621]
[1749510889123,0.80692608,109920.0,109910.0,0.2857801]
[1749510889522,0.80692608,109920.0,109910.0,0.28578004]
[1749510889726,0.80692608,109920.0,109910.0,0.28577999]
[1749510890022,0.80692608,109920.0,109910.0,0.28578007]
[1749510890325,0.80692608,109920.0,109910.0,0.28578006]
[1749510890625,0.80692608,109920.0,109910.0,0.27156949]
[1749510890827,0.80692608,109920.0,109910.0,0.28578]
[1749510891325,0.80692608,109920.0,109910.0,0.27156949]
[1749510891625,0.80692608,109920.0,109910.0,0.28577999]
[1749510891925,0.80692608,109920.0,109910.0,0.28578]
[1749510892130,0.80692608,109920.0,109910.0,0.27156949]
[1749510892319,0.80692608,109920.0,109910.0,0.28578004]
[1749510892617,0.80692608,109920.0,109910.0,0.31708004]
[1749510893324,0.80692608,109920.0,109910.0,0.31703641]
[1749510893524,0.28538608,109920.0,109910.0,0.36430328]
[1749510893725,0.28538608,109920.0,109910.0,0.5260022]
[1749510894226,0.28538608,109920.0,109910.0,0.54016888]
[1749510895016,0.00211748,109920.0,109910.0,0.54016888]
[1749510895217,0.10351748,109920.0,109910.0,0.42649803]
[1749510895423,0.28538658,109920.0,109910.0,0.42649787]
[1749510895630,0.28538658,109920.0,109910.0,0.41233636]
[1749510895831,0.28538658,109920.0,109910.0,0.42649784]
[1749510897036,0.28538658,109920.0,109910.0,0.42649687]
[1749510897240,0.28538658,109920.0,109910.0,0.42649685]
[1749510897433,0.28538658,109920.0,109910.0,0.41233636]
[1749510897634,0.28538658,109920.0,109910.0,0.42649688]
[1749510897928,0.28538658,109920.0,109910.0,0.42649689]
[1749510898134,0.28538658,109920.0,109910.0,0.53999844]
[1749510898330,0.18398658,109920.0,109910.0,0.52583791]
[1749510898537,0.28538658,109920.0,109910.0,0.53980788]
[1749510899832,0.28538658,109920.0,109910.0,0.52583791]
[1749510900140,0.28538658,109920.0,109910.0,0.53978643]
[1749510900336,0.28538658,109920.0,109910.0,0.53978652]
[1749510900535,0.28538658,109920.0,109910.0,0.53978655]
[1749510900735,0.28538658,109920.0,109910.0,0.52583791]
[1749510901242,0.28538658,109920.0,109910.0,0.53978651]
[1749510901440,0.28538658,109920.0,109910.0,0.40737575]
[1749510901637,0.00211748,109920.0,109910.0,0.53978651]
[1749510901838,0.00211748,109920.0,109910.0,0.42628496]
[1749510902040,0.02880844,109930.0,109920.0,0.2727971]
[1749510902041,0.1014,109930.0,109920.0,0.2727971]
[1749510902239,0.1014,109930.0,109920.0,0.67455695]
[1749510902438,0.2832526,109930.0,109920.0,0.67455692]
[1749510902640,0.1014,109930.0,109920.0,0.66060804]
[1749510902836,0.2832526,109930.0,109920.0,0.67455692]
[1749510903036,0.28332915,109930.0,109920.0,0.67455692]
[1749510903237,0.28332915,109930.0,109920.0,0.66060804]
[1749510903438,0.28332915,109930.0,109920.0,0.6745431]
[1749510903640,0.28532915,109930.0,109920.0,0.6745431]
[1749510904043,0.28532915,109930.0,109920.0,0.66060804]
[1749510904234,0.28532915,109930.0,109920.0,0.67453207]
[1749510904735,0.10347655,109930.0,109920.0,0.67453207]
[1749510905241,0.12907519,109930.0,109920.0,0.67453207]
[1749510905442,0.12907519,109930.0,109920.0,0.66060804]
[1749510905640,0.12907519,109930.0,109920.0,0.67453039]
[1749510905840,0.31092779,109930.0,109920.0,0.70299767]
[1749510906649,0.12907519,109930.0,109920.0,0.70299767]
[1749510906944,0.12907519,109930.0,109920.0,0.70299775]
[1749510907139,0.12907519,109930.0,109920.0,0.68908168]
[1749510907537,0.12907519,109930.0,109920.0,0.57058699]
[1749510907737,0.12907519,109930.0,109920.0,0.70299775]
[1749510908540,0.12907519,109930.0,109920.0,0.68908168]
[1749510909150,0.28532915,109930.0,109920.0,0.68908168]
[1749510909348,0.10347655,109930.0,109920.0,0.68908168]
[1749510909548,0.10347655,109930.0,109920.0,0.66042712]
[1749510909750,0.10347655,109930.0,109920.0,0.67425666]
[1749510909946,0.10347655,109930.0,109920.0,0.67425667]
[1749510910146,0.28532925,109930.0,109920.0,0.54184591]
[1749510910352,0.28532925,109930.0,109920.0,0.67425217]
[1749510910946,0.28532925,109930.0,109920.0,0.66042712]
[1749510911147,0.28532925,109930.0,109920.0,0.67425252]
[1749510911449,0.28532925,109930.0,109920.0,0.66042712]
[1749510911654,0.28532925,109930.0,109920.0,0.67425252]
[1749510912151,0.30669737,109930.0,109920.0,0.67425252]
[1749510912352,0.30669737,109930.0,109920.0,0.67424739]
[1749510912853,0.30669737,109930.0,109920.0,0.66042712]
[1749510913053,0.30669737,109930.0,109920.0,0.67424739]
[1749510913447,0.30669737,109930.0,109920.0,0.67878739]
[1749510914253,0.30669737,109930.0,109920.0,0.6787757]
[1749510914649,0.30669737,109930.0,109920.0,0.66496712]
[1749510914847,0.30669737,109930.0,109920.0,0.54636494]
[1749510915046,0.30669737,109930.0,109920.0,0.67876407]
[1749510915252,0.12484467,109930.0,109920.0,0.67876407]
[1749510915445,0.30669737,109930.0,109920.0,0.67876407]
[1749510915953,0.12484467,109930.0,109920.0,0.67876407]
[1749510916248,0.30669737,109930.0,109920.0,0.40439142]
[1749510916446,0.53600813,109930.0,109920.0,0.2773371]
[1749510916641,0.53600813,109930.0,109920.0,0.29115012]
[1749510916846,0.40359737,109930.0,109920.0,0.29115025]
[1749510917049,0.40359737,109930.0,109920.0,0.42356101]
[1749510917356,0.40359737,109930.0,109920.0,0.53680274]
[1749510917747,0.40359737,109930.0,109920.0,0.52298959]
[1749510918157,0.40359737,109930.0,109920.0,0.53682415]
[1749510919154,0.40359737,109930.0,109920.0,0.5368312]
[1749510920157,0.40359737,109930.0,109920.0,0.52298959]
[1749510920456,0.40359737,109930.0,109920.0,0.53683118]
[1749510921345,0.40359737,109930.0,109920.0,0.53684213]
[1749510921546,0.40359737,109930.0,109920.0,0.81116081]
[1749510921547,0.00207655,109930.0,109920.0,0.81116081]
[1749510921751,0.00207655,109930.0,109920.0,0.7610186]
[1749510922058,0.00207655,109930.0,109920.0,0.62860783]
[1749510922557,0.00207655,109930.0,109920.0,0.62860854]
[1749510922757,0.00207655,109930.0,109920.0,0.62860856]
[1749510923258,0.00207655,109930.0,109920.0,0.61475578]
[1749510923558,0.00207655,109930.0,109920.0,0.62860856]
[1749510923855,0.00207655,109930.0,109920.0,0.62867207]
[1749510924662,0.10327655,109930.0,109920.0,0.61475578]
[1749510924957,0.10327655,109930.0,109920.0,0.62866987]
[1749510925158,0.10327655,109930.0,109920.0,0.49625911]
[1749510925455,0.10327655,109930.0,109920.0,0.61475578]
[1749510925754,0.10327655,109930.0,109920.0,0.82692225]
[1749510926260,0.10327655,109930.0,109920.0,0.62867066]
[1749510926458,0.10327655,109930.0,109920.0,0.62867638]
[1749510926657,0.10327655,109930.0,109920.0,0.81300737]
[1749510926853,0.10327655,109930.0,109920.0,0.82692797]
[1749510927559,0.10327655,109930.0,109920.0,0.68502005]
[1749510927755,0.10327655,109930.0,109920.0,0.55260929]
[1749510928054,0.10327655,109930.0,109920.0,0.68502511]
[1749510928558,0.10327655,109930.0,109920.0,0.80351021]
[1749510928754,0.00207655,109930.0,109920.0,0.81743579]
[1749510928959,0.10327655,109930.0,109920.0,0.55258468]
[1749510929259,0.10327655,109930.0,109920.0,0.8174062]
[1749510929860,0.10327655,109930.0,109920.0,0.6849936]
[1749510930058,0.10327655,109930.0,109920.0,0.68499374]
[1749510930254,0.00207655,109930.0,109920.0,0.62864257]
[1749510930455,0.10327655,109930.0,109920.0,0.61474833]
[1749510930655,0.10327655,109930.0,109920.0,0.62864262]
[1749510930857,0.10327655,109930.0,109920.0,0.61474833]
[1749510931060,0.10327655,109930.0,109920.0,0.62864261]
[1749510931355,0.10327655,109930.0,109920.0,0.49623185]
[1749510931561,0.13447655,109930.0,109920.0,0.61474833]
[1749510931755,0.16587655,109930.0,109920.0,1.35026088]
[1749510931960,0.16587655,109930.0,109920.0,1.33634833]
[1749510932159,0.16587655,109930.0,109920.0,1.38226092]
[1749510932362,0.16587655,109930.0,109920.0,1.38226091]
[1749510932560,0.16587655,109930.0,109920.0,1.38226096]
[1749510933163,0.34772915,109930.0,109920.0,1.38226096]
[1749510933366,0.16587655,109930.0,109920.0,1.38226119]
[1749510933664,0.34772915,109930.0,109920.0,1.36834833]
[1749510933965,0.34772915,109930.0,109920.0,1.38227873]
[1749510934365,0.34772915,109930.0,109920.0,1.36834833]
[1749510934564,0.34772915,109930.0,109920.0,1.38227873]
[1749510934868,0.16587655,109930.0,109920.0,1.38227873]
[1749510935065,0.34772915,109930.0,109920.0,1.36834833]
[1749510935757,0.34772915,109930.0,109920.0,1.56659992]
[1749510935963,0.34772915,109930.0,109920.0,1.43863854]
[1749510936164,0.34772915,109930.0,109920.0,1.40643854]
[1749510937069,0.34772915,109930.0,109920.0,1.40643907]
[1749510937259,0.16587655,109930.0,109920.0,1.40643904]
[1749510937462,0.00207655,109930.0,109920.0,1.35226507]
[1749510937662,0.10327655,109930.0,109920.0,1.47073622]
[1749510937862,0.10327655,109930.0,109920.0,1.48467567]
[1749510938564,0.10327655,109930.0,109920.0,1.47073622]
[1749510938765,0.10327655,109930.0,109920.0,1.48467582]
[1749510938962,0.10327655,109930.0,109920.0,1.35226511]
[1749510939567,0.10327655,109930.0,109920.0,1.35226952]
[1749510940169,0.10327655,109930.0,109920.0,1.33832546]
[1749510940367,0.10327655,109930.0,109920.0,1.23869601]
[1749510940563,0.10327655,109930.0,109920.0,1.22474786]
[1749510940864,0.10327655,109930.0,109920.0,1.38066438]
[1749510941769,0.10327655,109930.0,109920.0,1.23869634]
[1749510941963,0.10327655,109930.0,109920.0,1.23869668]
[1749510942264,0.00207655,109930.0,109920.0,1.22474786]
[1749510942471,0.00207655,109930.0,109920.0,1.37110744]
[1749510942472,0.10327655,109930.0,109920.0,1.37110744]
[1749510942770,0.10327655,109930.0,109920.0,1.37110742]
[1749510942965,0.10327655,109930.0,109920.0,1.3850562]
[1749510943173,0.10327655,109930.0,109920.0,1.37108972]
[1749510943368,0.10327655,109930.0,109920.0,1.51305505]
[1749510943569,0.10327655,109930.0,109920.0,1.49912385]
[1749510943759,0.00207655,109930.0,109920.0,1.51305629]
[1749510943966,0.0328,109960.0,109950.0,0.1818195]
[1749510944273,0.1671,109960.0,109950.0,1.03583026]
[1749510944473,0.1671,109960.0,109950.0,1.27269549]
[1749510945073,0.1062,109960.0,109950.0,1.27269549]
[1749510945373,0.1062,109960.0,109950.0,1.84343698]
[1749510945574,0.1112,109960.0,109950.0,1.84343698]
[1749510945774,0.1112,109960.0,109950.0,1.44122882]
[1749510945975,0.11104,109960.0,109950.0,1.56468473]
[1749510946274,0.292843,109960.0,109950.0,1.03071579]
[1749510946576,0.391043,109960.0,109950.0,1.03071578]
[1749510946772,0.391043,109960.0,109950.0,1.03071581]
[1749510946972,0.383043,109960.0,109950.0,0.91735002]
[1749510947173,0.385043,109960.0,109950.0,1.03068118]
[1749510947371,0.385043,109960.0,109950.0,1.03522118]
[1749510947574,0.385043,109960.0,109950.0,1.03522483]
[1749510947771,0.385043,109960.0,109950.0,1.02129066]
[1749510948075,0.385043,109960.0,109950.0,1.03522488]
[1749510948275,0.385043,109960.0,109950.0,1.03522483]
[1749510948476,0.385043,109960.0,109950.0,1.03522482]
[1749510948681,0.385043,109960.0,109950.0,1.03522486]
[1749510949279,0.385043,109960.0,109950.0,1.02129066]
[1749510949569,0.385043,109960.0,109950.0,0.9079595]
[1749510949874,0.385043,109960.0,109950.0,1.02129066]
[1749510955681,0.51745376,109960.0,109950.0,1.02129066]
[1749510957582,0.94169376,109960.0,109950.0,1.02129066]
[1749510957784,0.94169376,109960.0,109950.0,0.9079595]
[1749510957982,0.94169376,109960.0,109950.0,0.45028891]
[1749510958180,1.30249376,109960.0,109950.0,0.32794446]
[1749510958379,1.30249376,109960.0,109950.0,0.24299555]
[1749510958982,1.39343776,109960.0,109950.0,0.14612436]
[1749510959176,1.39343776,109960.0,109950.0,0.28547602]
[1749510959487,1.39343776,109960.0,109950.0,0.28547808]
[1749510959986,1.39343776,109960.0,109950.0,0.10365798]
[1749510960176,1.39343776,109960.0,109950.0,0.28547808]
[1749510960381,1.03263776,109960.0,109950.0,0.28547808]
[1749510961692,1.44503776,109960.0,109950.0,0.28547808]
[1749510962591,1.44503776,109960.0,109950.0,0.29911808]
[1749510962887,1.35409376,109960.0,109950.0,0.11729798]
[1749510963581,1.35409376,109960.0,109950.0,0.13112374]
[1749510963787,1.35409376,109960.0,109950.0,0.29911808]
[1749510963988,1.35409376,109960.0,109950.0,0.11729798]
[1749510964187,1.35409376,109960.0,109950.0,0.13112364]
[1749510964784,1.35409376,109960.0,109950.0,0.11729798]
[1749510964984,1.35409376,109960.0,109950.0,0.13112873]
[1749510965185,1.35409376,109960.0,109950.0,0.13112872]
[1749510965386,1.35409376,109960.0,109950.0,0.11729798]
[1749510965890,1.35409376,109960.0,109950.0,0.13112877]
[1749510966397,1.71489376,109960.0,109950.0,0.13112877]
[1749510966589,1.35409376,109960.0,109950.0,0.13113306]
[1749510966888,1.35409376,109960.0,109950.0,0.11729798]
[1749510967094,1.71489376,109960.0,109950.0,0.1311452]
[1749510967391,1.71489376,109960.0,109950.0,0.13114539]
[1749510967586,1.93824852,109960.0,109950.0,0.13114539]
[1749510967895,0.1818201,109950.0,109940.0,0.09927176]
[1749510968197,0.87244162,109950.0,109940.0,0.09927176]